Cogmind - Beta 16.1 @@@ ROGUE MODE // 2026.04.10 @ 13:04:42 Player: SunShine214 Result: Destroyed by A1-17E(R) with Subdweller Machine Gun Performance ------------- Evolutions (0) 0 Regions Visited (2) 400 Robots Destroyed (19) 95 Value Destroyed (448) 448 Prototype IDs (0) 0 Alien Tech Used (0) 0 Bonus (0) 0 TOTAL SCORE: 943 Bonus ------- None Cogmind --------- Core Integrity 0/250 Matter 300/300 Energy 100/100 System Corruption 0% Temperature Cool (0) Movement Treading (160) Location -10/Subcaves Parts ------- > --- POWER (1) -------- (None) > --- PROPULSION (2) --- Light Treads > --- UTILITY (2) ------ (None) > --- WEAPON (2) ------- (None) > --- INVENTORY (5) ---- Light Treads Small Storage Unit Signal Interpreter Light Armor Plating Peak State ------------ > --- POWER ------------ Ion Engine > --- PROPULSION ------- Light Treads Light Treads > --- UTILITY ---------- Small Storage Unit Improved Terrain Scanner > --- WEAPON ----------- EM Pulse Gun Small Laser > --- INVENTORY -------- Light Assault Rifle Mining Laser [Rating: 9] Favorites ----------- Power Ion Engine Engine Ion Engine Propulsion Light Treads Treads Light Treads Flight Unit Flight Unit Utility Small Storage Unit Device Improved Terrain Scanner Storage Small Storage Unit Protection Light Armor Plating Weapon EM Pulse Gun Energy Gun EM Pulse Gun Ballistic Gun Light Assault Rifle Special Weapon Mining Laser Build | -11 -10 -10 ------- Run | Yrd Mat Sub Slots Evolved . | . . . Power . | . . . Propulsion . | . . . Utility . | . . . Weapon . | . . . Parts Attached 15 | 7 3 5 Power 1 | 1 . . Engine 1 | 1 . . Core . | . . . Reactor . | . . . Propulsion 6 | 2 2 2 Treads 4 | 2 2 . Leg . | . . . Wheel . | . . . Hover . | . . . Flight 2 | . . 2 Utility 4 | 2 . 2 Device 2 | 1 . 1 Storage 1 | 1 . . Processor . | . . . Hackware . | . . . Protection 1 | . . 1 Artifact . | . . . Weapon 4 | 2 1 1 Energy Gun 2 | 2 . . Energy Cannon . | . . . Ballistic Gun 1 | . . 1 Ballistic Cannon . | . . . Launcher . | . . . Special Weapon 1 | . 1 . Impact Weapon . | . . . Slashing Weapon . | . . . Piercing Weapon . | . . . Special Melee Weapon . | . . . Unidentified Prototypes . | . . . Parts Lost 10 | . . 10 Power 1 | . . 1 Propulsion 3 | . . 3 Utility 2 | . . 2 Weapon 4 | . . 4 Highest Loss Streak 6 | . . 6 To Critical Strikes . | . . . Average Backups 6 | 1 6 5 Power . | . . . Propulsion 2 | . 2 2 Utility 2 | . 2 2 Weapon 1 | 1 2 . Tool/Special . | . . . Unused Backups 3 | . 2 1 Power . | . . . Propulsion . | . . . Utility 3 | . 2 1 Weapon . | . . . Tool/Special . | . . . Average Slot Usage (%) 95 | . 100 68 Engine 12 | . 14 2 Treads 26 | . 28 14 Flight 1 | . . 13 Device 13 | . 14 9 Storage 12 | . 14 6 Energy Gun 22 | . 24 4 Ballistic Gun 1 | . . 10 Special Weapon 3 | . 3 3 Peak Build Rating 9 | 9 9 9 Average Rating 8 | 5 9 4 On Entrance 6 | . 9 9 Avg Prop Armor Cover (%) . | . . . Naked Turns . | . . . Heaviest Build 14 | 14 14 14 Greatest Support 40 | 40 40 40 Greatest Overweight (x) . | . . . Average Overweight (x) . | . . . Largest Inventory Capacity 8 | 8 8 8 Average Capacity 7 | 7 8 6 Most Carried 8 | 2 8 8 Average Carried 6 | 1 6 5 Final Capacity 8 | 8 8 5 Final Carried 8 | 2 8 4 Class Distribution -------------------- 100% | Mutant Dominant Class ---------------- Mutant | -10/Materials Mutant | -10/Subcaves Resources | -11 -10 -10 ----------- Run | Yrd Mat Sub Matter Collected 370 | 270 50 50 Remotely . | . . . Salvage Created 639 | 129 460 50 Parts 43 | 9 31 3 Haulers Intercepted 1 | . 1 . Recyclers Shooed . | . . . Parts Field Recycled . | . . . Retrieved Matter . | . . . Parts Self-Destructed . | . . . Prevented . | . . . Parts Restored . | . . . Kills | -11 -10 -10 ------- Run | Yrd Mat Sub Combat Hostiles Destroyed 12 | . 10 2 Guns 10 | . 9 1 Cannons 1 | . . 1 AOE 1 | . 1 . Classes Destroyed 9 | 2 6 1 Worker 1 | . 1 . Builder 1 | . 1 . Tunneler 2 | 2 . . Hauler 1 | . 1 . Recycler 1 | 1 . . Watcher 1 | . 1 . Swarmer 3 | . 3 . Grunt 7 | . 7 . Subdweller 2 | . . 2 Best Kill Streak 5 | 3 5 1 Combat Bots Only 3 | . 3 1 Max Kills in Single Turn 1 | 1 1 1 Gunslinging . | . . . Exploded 1 | . 1 . Melee . | . . . Uniques/NPCs Destroyed . | . . . Combat | -11 -10 -10 -------- Run | Yrd Mat Sub Hostile Shots Fired 67 | . 19 48 Missed 13 | . 9 4 Hits 54 | . 10 44 Projectile 54 | . 10 44 Critical Strikes 3 | . . 3 Damage Taken 1095 | 40 147 908 Core 260 | . 15 245 Absorbed by Shields . | . . . Core Remaining (%) 100 | 100 . . Volleys Fired 56 | 3 38 15 Largest 2 | 2 2 2 Hottest 140 | 80 140 120 Shots Fired 97 | 6 67 24 Gun 80 | 6 53 21 Cannon . | . . . Launcher . | . . . Special 17 | . 14 3 Kinetic 12 | . . 12 Thermal 41 | 3 29 9 Explosive . | . . . Electromagnetic 44 | 3 38 3 Robot Hit Streak 24 | 3 9 24 Robot Miss Streak 2 | 1 2 . Penetration Max . | . . . Secondary Targets . | . . . Shots Hit Robots 59 | 4 33 22 Core Hits 31 | 3 21 7 Critical Kills . | . . . Critical Parts Destroyed . | . . . Critical Strikes 1 | . . 1 Corrupt 1 | . . 1 Melee Attacks . | . . . Impact . | . . . Slashing . | . . . Piercing . | . . . Sneak Attacks . | . . . Combat Hostiles . | . . . Follow-up Attacks . | . . . Damage Inflicted 875 | 98 561 216 Guns 635 | 52 417 166 Cannons . | . . . Explosions 166 | 46 120 . Melee . | . . . Ramming 2 | . . 2 Kinetic 70 | . . 70 Thermal 429 | 58 260 111 Explosive . | . . . Electromagnetic 374 | 40 301 33 Impact . | . . . Slashing . | . . . Piercing . | . . . Highest Corruption . | . . . Average Corruption . | . . . Corruption Purged . | . . . Corruption Blocked . | . . . Overload Shots . | . . . Overflow Damage . | . . . Projectiles . | . . . Explosions . | . . . Melee . | . . . Knockbacks . | . . . Impact . | . . . Kinetic . | . . . Secondary . | . . . Self-Inflicted Damage 67 | 40 27 . Shots 2 | 1 1 . Rammed 4 | . . 4 Targets Rammed 4 | . . 4 Kicked . | . . . Crushed . | . . . Highest Temperature 144 | 30 144 . Average Temperature 38 | 15 40 . Received Heat Transfer 168 | . 66 102 Siege Activations . | . . . Martial Activations . | . . . Shielding Activations . | . . . Robots Disrupted . | . . . Combat Hostiles . | . . . Robots Corrupted . | . . . Combat Hostiles . | . . . Parts Fried . | . . . Impact Corruptions . | . . . Robots Melted . | . . . Combat Hostiles . | . . . Parts Melted . | . . . Heat Transferred 850 | 75 525 250 Parts Sabotaged . | . . . Parts Stolen . | . . . Parts Stripped . | . . . Power Chain Reactions 4 | 1 3 . Alert | -11 -10 -10 ------- Run | Yrd Mat Sub Maximum Alert Level . | . . . Low Security (%) 100 | 100 100 . Level 1 . | . . . Level 2 . | . . . Level 3 . | . . . Level 4 . | . . . Level 5 . | . . . High Security . | . . . Max Security . | . . . Peak Influence 142 | 5 142 . Initial . | . . . Average 44 | 1 48 . Influence Increases 394 | 15 379 . Destroy 0b10 Robot/C 200 | . 200 . Destroy 0b10 Robot/NC 35 | 15 20 . Destroy Leader 44 | . 44 . Successful Hack 25 | . 25 . Disable Machine 45 | . 45 . Destroy Structure 15 | . 15 . Lose Combat Pursuer 30 | . 30 . Influence Decreases 394 | 15 329 50 Entered New Map 25 | . . 25 Time Decay 349 | 15 329 5 Lost Part 20 | . . 20 Squads Dispatched 1 | . 1 . Investigation 1 | . 1 . Extermination . | . . . Reinforcement . | . . . Assault . | . . . Garrison . | . . . Intercept . | . . . Searches Triggered . | . . . Construction Impeded . | . . . Haulers Reinforced . | . . . Active Scanning Responses . | . . . Cargo Convoy Interrupts . | . . . Stealth | -11 -10 -10 --------- Run | Yrd Mat Sub Distress Signals . | . . . Communications Jammed . | . . . Distress Signals . | . . . Times Spotted 26 | . 22 4 Peak Tracking Total 4 | . 4 2 Tactical Retreats 2 | . 2 . Traps | -11 -10 -10 ------- Run | Yrd Mat Sub Traps Triggered 1 | . 1 . Indirectly . | . . . Trap Hack Attempts . | . . . Triggered . | . . . Disarmed . | . . . Reprogrammed . | . . . Reused . | . . . Traps Extracted . | . . . Installed . | . . . Triggered . | . . . Machines | -11 -10 -10 ---------- Run | Yrd Mat Sub Machines Disabled 3 | . 3 . Max in Single Turn 1 | . 1 . Machines Repaired . | . . . Machines Dismantled . | . . . Machines Sabotaged . | . . . Overloaded Fab Kills . | . . . Hacking | -11 -10 -10 --------- Run | Yrd Mat Sub Machines Accessed 7 | . 7 . Terminals 7 | . 7 . Fabricators . | . . . Repair Stations . | . . . Recycling Units . | . . . Scanalyzers . | . . . Garrison Access . | . . . Total Hacks 16 | . 16 . Successful 8 | . 8 . Failed 8 | . 8 . Catastrophic 1 | . 1 . Database Lockouts . | . . . Manual . | . . . Terminals 16 | . 16 . Fabricators . | . . . Repair Stations . | . . . Recycling Units . | . . . Scanalyzers . | . . . Garrison Access . | . . . Terminal Hacks 8 | . 8 . Branch Access Points 1 | . 1 . Terminal Index 1 | . 1 . Recycling Unit Index 1 | . 1 . Maintenance Status 1 | . 1 . Investigation Status 1 | . 1 . Assault Status 1 | . 1 . Hauler Manifests 1 | . 1 . Registered Components 1 | . 1 . Fabricator Hacks . | . . . Repair Station Hacks . | . . . Recycling Unit Hacks . | . . . Scanalyzer . | . . . Garrison Access Hacks . | . . . Unauthorized Hacks . | . . . Terminals . | . . . Fabricators . | . . . Repair Stations . | . . . Recycling Units . | . . . Scanalyzers . | . . . Garrison Access . | . . . Data Cores Recovered . | . . . Used . | . . . Hacking Detections 4 | . 4 . Full Trace Events . | . . . Feedback Events . | . . . Feedback Blocked . | . . . Robot Schematics Acquired . | . . . Robots Built . | . . . Authchips . | . . . Time . | . . . Total Robot Build Rating . | . . . Part Schematics Acquired . | . . . Parts Built . | . . . Authchips . | . . . Time . | . . . Total Part Build Rating . | . . . Part Studies Acquired . | . . . Parts Repaired . | . . . Time . | . . . Parts Recycled . | . . . Recycled Matter . | . . . Retrieved Matter . | . . . Retrieved Components . | . . . Parts Scanalyzed . | . . . Part Schematics Acquired . | . . . Parts Damaged . | . . . Bothacking | -11 -10 -10 ------------ Run | Yrd Mat Sub Used RIF Installer . | . . . Robots Hacked . | . . . Non-combat . | . . . Combat . | . . . Robot Hacks Applied . | . . . Relay Couplers Released . | . . . Fabnet Peak Effective % . | . . . Robots Rewired . | . . . Allies Hacked . | . . . Hacks Repelled . | . . . Allies | -11 -10 -10 -------- Run | Yrd Mat Sub Total Allies . | . . . Largest Group . | . . . Highest-Rated Group . | . . . Highest-Rated Ally . | . . . Total Orders . | . . . Ally Attacks . | . . . Total Damage . | . . . Kills . | . . . Allies Corrupted . | . . . Allies Melted . | . . . Intel | -11 -10 -10 ------- Run | Yrd Mat Sub Active Infowar (turns) 1132 | 15 1020 97 Sensors 69 | . . 69 Terrain 1063 | 15 1020 28 Robot Analysis Total . | . . . Derelict Logs Recovered 1 | . . 1 Drone Launches . | . . . Drone Recoveries . | . . . Exploration | -11 -10 -10 ------------- Run | Yrd Mat Sub Turns Passed 1255 | 87 1020 148 Spaces Moved 505 | 44 337 124 Core 3 | 3 . . Treads 388 | 41 337 10 Legs . | . . . Wheels . | . . . Hover . | . . . Flight 114 | . . 114 Fastest Speed 37 | 50 160 37 Average Speed 131 | 152 160 47 Slowest Speed 160 | 160 160 160 Overloaded Moves . | . . . Propulsion Burnouts . | . . . Robots Hopped . | . . . Potential Cave-ins . | . . . Cave-ins Triggered . | . . . Exploration Rate (%) 25 | 4 68 3 Regions Visited 2 Branch Regions 1 Pre-discovered Areas . | . . . Known Exits Taken . | . . . Unknown Exits Taken 2 | 1 1 . Scrap Searched . | . . . Spaces Dug . | . . . Terrain Destroyed 20 | 5 15 . Melee . | . . . Projectile 3 | . 3 . AOE 17 | 5 12 . Terrain Rammed . | . . . Walls Destroyed . | . . . Machines Disabled . | . . . Actions | -11 -10 -10 --------- Run | Yrd Mat Sub Total 960 | 55 722 183 Wait 357 | . 331 26 Move 503 | 43 336 124 Hop . | . . . Pick Up 11 | 2 7 2 Fast Attach 7 | 7 . . Attach 6 | . . 6 Detach 1 | . . 1 Swap 9 | . 6 3 Drop 6 | . 4 2 Fire 56 | 3 38 15 Melee . | . . . Ram . | . . . Kick . | . . . Crush 4 | . . 4 Escape Stasis . | . . . Rewire . | . . . Trap . | . . . Miscellaneous . | . . . Route ------- -11/Scrapyard -10/Materials (discovered 5 exits: [*Mat x2] / *Min x2 / [*Sub]) -10/Subcaves History --------- Turn | Location | Event 30 | -11/Scrapyard | Discovered new exit (range 16) 88 | -11/Scrapyard | Entered Materials 312 | -10/Materials | Build established: Mutant 329 | -10/Materials | Discovered new exit (range 9) 417 | -10/Materials | Identified exit to Mines 506 | -10/Materials | Discovered new exit (range 16) 852 | -10/Materials | Discovered new exit (range 10) 1077 | -10/Materials | Discovered new exit (range 3) 1108 | -10/Materials | Entered Subcaves 1109 | -10/Subcaves | Ambushed by Subdwellers from Twisted Machinery 1139 | -10/Subcaves | Core integrity fell below 50% 1180 | -10/Subcaves | Learned Materials terminal intel 1182 | -10/Subcaves | Lost 6 parts (1p1n1u3w) 1249 | -10/Subcaves | Core integrity fell below 20% 1256 | -10/Subcaves | Destroyed by A1-17E(R) with Subdweller Machine Gun Last Messages --------------- 01170_ Acquired Flight Unit. 01172_ Acquired 10 matter. 01173_ Acquired 1 matter. 01174_ Subatomizers dissect the Corrupted Sub. Monowheel. 01175_ Acquired Lgt. Treads. 01178_ Acquired Sml. Storage Unit. 01180_ Acquired derelict log, extracted data. Data stored: Materials terminal intel. 01184_ Subatomizers dissect the Corrupted Sub. Monowheel. 01242_ Flight Unit destroyed. 01244_ Lgt. Assault Rifle destroyed. 01246_ Sensor Array destroyed. 01248_ Slammed into X1-8P9(R). 01251_ Subatomizers dissect the Corrupted Sub. Monowheel. 01251_ Slammed into X1-8P9(R). 01252_ Flight Unit destroyed. 01253_ Slammed into X1-8P9(R). Map ----- +----------------------------------------------------+ | ?????????????????????????????????????????????????? | | ?????????????????????????????????????????????????? | | ?????????????????????????????????????????????????? | | ?????????????????????????????????????????????????? | | ?????????????????????????????????????????????????? | | ?????????????????????????????????????????????????? | | ?????????????????????????????????????????????????? | | ?????????????????????????????????????????????????? | | ?????????????#???????????????????????????????????? | | ??????????????#??????????????????????????????????? | | ?????????????????????????????????????????????????? | | ???????????????????????????#?????????????????????? | | ?????????????????????????????#???????????????????? | | ????????????????#????????????????????????????????? | | ?????????????????????????????????????????????????? | | ?????????????????????????????????????????????????? | | ?????????????????#???????????????????????????????? | | ??????????? ???????####??????????????????????????? | | ??????????????????## ###????????????????????????? | | ?????????????????## !& ###??????????????????????? | | ?????????????????# & ##??????????????????????? | | ????????? ???#???# !&= "" ##?????????????????????? | | ????????????????## """ #?????????????????????? | | ???????????????## ## ""#???#?????????????????? | | ?????????#???### ### %R#?????????????????????? | | ????????????### ##?## @ #?????????????????????? | | ????????????# ###### R #####?????????????????? | | ????????????## #?# ##????????????????? | | ?????????????## ##?# #????????????????? | | ??????????????# ##?## # # #???????????????? | | ??????????????# ##??# ####"""""#??????????????? | | ?????# " ## # #??# """"#"""""#??????????????? | | ??????"""" ##??##"""" ##??????????????? | | ???? " " # " """"#### # %##???????????????? | | ??????????## "" """"???#%# #????????????????? | | ???????????### """"??? ? ????????????????? | | ?????????????## """?? ? ???????????????? | | ??????????????######"""? ?? # ##??????????????? | | ????????????????????###????##?####???????????????? | | ?????????????????????????????????????????????????? | | ?????????????????????????????????????????????????? | | ?????????????????????????????????????????????????? | | ?????????????????????????????????????????????????? | | ?????????????????????????????????????????????????? | | ?????????????????????????????????????????????????? | | ?????????????????????????????????????????????????? | | ?????????????????????????????????????????????????? | | ?????????????????????????????????????????????????? | | ?????????????????????????????????????????????????? | | ?????????????????????????????????????????????????? | +----------------------------------------------------+ Best States ------------- Heat Dissipation 25 Energy Generation 10 Energy Capacity 250 Matter Stores 300 Matter Capacity 300 Sight Range 16 Robot Scan Range 14 Terrain Scan Range 16 Terrain Scan Density 10 Armor Coverage 150 Evasion (%) 62 Recoil Reduction 2 Item Schematics ----------------- None Robot Schematics ------------------ None Fabricated ------------ Nothing Repaired ---------- Nothing Studied --------- None Alien Tech Used ----------------- None Achievements -------------- None Challenges ------------ None Game ------ Seed EnergyRelayDeflector Manual? 0 Play Time 00:10:00 Cumulative 127.4 hours Start 2026.04.10 @ 12:52:59 End 2026.04.10 @ 13:04:42 Sessions 1 Manual Loads 0 Difficulty Rogue Special Mode None Game No. 196 Rogue 196 Adventurer 0 Explorer 0 Win Type - Total 1 Types 1/0/0/0/0/0/0/0/0/0 Lore% 50 Gallery% 53 Achievement% 41 Wizard Run 0 Options --------- Layout 1 ASCII 0 Keyboard 1 Movement Arrows Keybinds 0 Fullscreen 1 Font 24/Smallcaps Map View 50x35 Zoom Use 0% Tactical HUD 1 Map Filters NONE Filters NONE Steam 1 RUN: 2c13e45f-fd8d-4a4c-be33-e74e45c654f1